Cogmind - Beta 9.4 *** ADVENTURER MODE // 2020.07.30 @ 17:14:25 Player: Scyralis Result: Self-destructed Performance ------------- Evolutions (1) 500 Regions Visited (3) 600 Robots Destroyed (27) 135 Value Destroyed (448) 448 Prototype IDs (0) 0 Alien Tech Used (0) 0 Bonus (0) 0 TOTAL SCORE: 1683 Bonus ------- None Cogmind --------- Core Integrity 348/400 Matter 300/300 Energy 456/565 System Corruption 0% Temperature Cool (14) Movement Walking (150) Ox1 Location -9/Materials Parts ------- > --- POWER (1) -------- Improved Ion Engine > --- PROPULSION (2) --- Aluminum Leg > --- UTILITY (4) ------ Disposable Heat Sink Large Battery Structural Scanner Visual Processing Unit > --- WEAPON (2) ------- (None) > --- INVENTORY (4) ---- (None) Peak State ------------ > --- POWER ------------ Improved Ion Engine > --- PROPULSION ------- Aluminum Leg Aluminum Leg > --- UTILITY ---------- Disposable Heat Sink Large Battery Structural Scanner Visual Processing Unit > --- WEAPON ----------- Beam Rifle EMP Blaster > --- INVENTORY -------- (None) [Rating: 14] Favorites ----------- Power Improved Ion Engine Engine Improved Ion Engine Propulsion Aluminum Leg Leg Aluminum Leg Utility Structural Scanner Device Structural Scanner Storage Large Battery Processor Visual Processing Unit Weapon EMP Blaster Energy Gun Small Laser Launcher EMP Blaster Build | -11 -10 -10 -9 ------- Run | Scr Mat Min Mat Slots Evolved 2 | . . . 2 Power . | . . . . Propulsion . | . . . . Utility 2 | . . . 2 Weapon . | . . . . Parts Attached 16 | 4 8 . 4 Power 4 | 1 2 . 1 Engine 4 | 1 2 . 1 Core . | . . . . Reactor . | . . . . Propulsion 4 | 2 2 . . Treads . | . . . . Leg 4 | 2 2 . . Wheel . | . . . . Hover . | . . . . Flight . | . . . . Utility 4 | . 2 . 2 Device 2 | . 2 . . Storage 1 | . . . 1 Processor 1 | . . . 1 Hackware . | . . . . Protection . | . . . . Artifact . | . . . . Weapon 4 | 1 2 . 1 Energy Gun 3 | 1 1 . 1 Energy Cannon . | . . . . Ballistic Gun . | . . . . Ballistic Cannon . | . . . . Launcher 1 | . 1 . . Special Weapon . | . . . . Impact Weapon . | . . . . Slashing Weapon . | . . . . Piercing Weapon . | . . . . Special Melee Weapon . | . . . . Unidentified Prototypes . | . . . . Parts Lost 5 | . 1 . 4 Power . | . . . . Propulsion 1 | . . . 1 Utility . | . . . . Weapon 4 | . 1 . 3 Highest Loss Streak 3 | . 1 . 3 Average Slot Usage (%) 84 | . 81 100 84 Engine 12 | . 14 14 11 Leg 25 | . 28 28 21 Device 18 | . 13 28 22 Storage 2 | . . . 5 Processor 2 | . . . 4 Energy Gun 15 | . 22 14 8 Launcher 7 | . 2 14 10 Naked Turns . | . . . . Heaviest Build 19 | 5 14 14 19 Greatest Support 20 | 20 20 20 20 Greatest Overweight (x) 1 | . . . 1 Average Overweight (x) . | . . . . Largest Inventory Capacity 4 | 4 4 4 4 Average Capacity 4 | 4 4 4 4 Most Carried 3 | 3 2 . 1 Average Carried . | . . . . Final Capacity 4 | 4 4 4 4 Final Carried . | . . . . Class Distribution -------------------- 51% | Scavenger-Mutant 48% | Mutant Dominant Class ---------------- Scavenger-Mutant | -10/Materials Scavenger-Mutant | -10/Mines Mutant | -9/Materials Resources | -11 -10 -10 -9 ----------- Run | Scr Mat Min Mat Matter Collected 426 | 232 90 . 104 Remotely . | . . . . Salvage Created 968 | 87 342 . 539 Parts 60 | 3 24 . 33 Haulers Intercepted 3 | . 1 . 2 Recyclers Shooed 3 | 1 1 . 1 Parts Field Recycled . | . . . . Retrieved Matter . | . . . . Parts Self-Destructed . | . . . . Prevented . | . . . . Kills | -11 -10 -10 -9 ------- Run | Scr Mat Min Mat Combat Hostiles Destroyed 13 | . 4 . 9 Guns 5 | . 3 . 2 AOE 8 | . 1 . 7 Classes Destroyed 9 | 2 5 . 2 Worker 2 | . 2 . . Builder 1 | . 1 . . Tunneler 2 | 1 1 . . Hauler 3 | . 1 . 2 Recycler 3 | 1 . . 2 Watcher 3 | . 1 . 2 Swarmer 6 | . . . 6 Grunt 6 | . 4 . 2 Sentry 1 | . . . 1 Best Kill Streak 7 | 2 4 . 7 Combat Bots Only 3 | . 3 . 3 Max Kills in Single Turn 2 | 1 2 . 2 Gunslinging . | . . . . Exploded 2 | . 1 . 2 Melee . | . . . . Uniques/NPCs Destroyed . | . . . . Combat | -11 -10 -10 -9 -------- Run | Scr Mat Min Mat Damage Taken 669 | . 298 . 371 Core 130 | . 78 . 52 Absorbed by Shields . | . . . . Core Remaining (%) 84 | 100 . 68 . Volleys Fired 56 | 5 30 . 21 Largest 2 | 1 2 . 2 Hottest 89 | 40 80 . 89 Shots Fired 79 | 5 42 . 32 Gun 57 | 5 41 . 11 Cannon . | . . . . Launcher 22 | . 1 . 21 Special . | . . . . Kinetic . | . . . . Thermal 26 | . 15 . 11 Explosive . | . . . . Electromagnetic 53 | 5 27 . 21 Robot Hit Streak 27 | 3 21 . 27 Robot Miss Streak 2 | 2 1 . 2 Penetration Max . | . . . . Secondary Targets . | . . . . Shots Hit Robots 60 | 3 36 . 21 Core Hits 38 | 3 15 . 20 Critical Hits . | . . . . Critical Kills . | . . . . Critical Parts Destroyed . | . . . . Melee Attacks . | . . . . Impact . | . . . . Slashing . | . . . . Piercing . | . . . . Sneak Attacks . | . . . . Combat Hostiles . | . . . . Follow-up Attacks . | . . . . Damage Inflicted 1387 | 54 612 . 721 Guns 629 | 54 439 . 136 Cannons . | . . . . Explosions 756 | . 171 . 585 Melee . | . . . . Ramming 2 | . 2 . . Kinetic . | . . . . Thermal 465 | . 299 . 166 Explosive . | . . . . Electromagnetic 920 | 54 311 . 555 Impact . | . . . . Slashing . | . . . . Piercing . | . . . . Highest Corruption 1 | . 1 1 . Average Corruption 1 | . 1 1 . Corruption Purged . | . . . . Effects 2 | . 1 1 . Energy Discharges 2 | . 1 1 . Overload Shots . | . . . . Overflow Damage 2 | . . . 2 Projectiles . | . . . . Explosions 2 | . . . 2 Melee . | . . . . Knockbacks . | . . . . Impact . | . . . . Kinetic . | . . . . Secondary . | . . . . Self-Inflicted Damage 85 | . 59 . 26 Shots 5 | . 3 . 2 Rammed . | . . . . Targets Rammed 1 | . 1 . . Kicked 1 | . 1 . . Crushed . | . . . . Highest Temperature 199 | . 153 . 199 Average Temperature 63 | . 59 . 71 Received Heat Transfer 267 | . 180 . 87 Siege Activations . | . . . . Robots Corrupted . | . . . . Combat Hostiles . | . . . . Parts Fried 8 | . 5 . 3 Impact Corruptions . | . . . . Robots Melted . | . . . . Combat Hostiles . | . . . . Parts Melted . | . . . . Heat Transferred 959 | . 525 . 434 Parts Sabotaged . | . . . . Parts Stolen . | . . . . Parts Stripped . | . . . . Power Chain Reactions 6 | . 2 . 4 Missiles Intercepted . | . . . . Alert | -11 -10 -10 -9 ------- Run | Scr Mat Min Mat Peak Influence 281 | 10 182 59 281 Average Influence 111 | 3 107 59 142 Maximum Alert Level 1 | . . . 1 Low Security (%) 95 | 100 100 100 90 Level 1 4 | . . . 9 Level 2 . | . . . . Level 3 . | . . . . Level 4 . | . . . . Level 5 . | . . . . High Security . | . . . . Max Security . | . . . . Squads Dispatched 1 | . 1 . . Investigation 1 | . 1 . . Extermination . | . . . . Reinforcement . | . . . . Assault . | . . . . Garrison . | . . . . Intercept . | . . . . Construction Impeded . | . . . . Haulers Reinforced . | . . . . Stealth | -11 -10 -10 -9 --------- Run | Scr Mat Min Mat Distress Signals 2 | . . . 2 Communications Jammed . | . . . . Distress Signals . | . . . . Times Spotted 18 | . 6 . 12 Peak Tracking Total 4 | . 3 . 4 Tactical Retreats 1 | . 1 . . Traps | -11 -10 -10 -9 ------- Run | Scr Mat Min Mat Traps Triggered . | . . . . Indirectly . | . . . . Trap Hack Attempts . | . . . . Triggered . | . . . . Disarmed . | . . . . Reprogrammed . | . . . . Reused . | . . . . Traps Extracted . | . . . . Installed . | . . . . Triggered . | . . . . Machines | -11 -10 -10 -9 ---------- Run | Scr Mat Min Mat Machines Disabled 2 | . 2 . . Max in Single Turn 2 | . 2 . . Machines Sabotaged . | . . . . Garrisons Compromised . | . . . . Overloaded Fab Kills . | . . . . Fab Network Shutdowns . | . . . . Hacking | -11 -10 -10 -9 --------- Run | Scr Mat Min Mat Machines Accessed 3 | . 1 . 2 Terminals 3 | . 1 . 2 Fabricators . | . . . . Repair Stations . | . . . . Recycling Units . | . . . . Scanalyzers . | . . . . Garrison Access . | . . . . Total Hacks 11 | . 3 . 8 Successful 4 | . 1 . 3 Failed 7 | . 2 . 5 Catastrophic 1 | . . . 1 Database Lockouts . | . . . . Manual 10 | . 3 . 7 Terminals 11 | . 3 . 8 Fabricators . | . . . . Repair Stations . | . . . . Recycling Units . | . . . . Scanalyzers . | . . . . Garrison Access . | . . . . Terminal Hacks 3 | . 1 . 2 Robot Analysis 3 | . 1 . 2 Fabricator Hacks . | . . . . Repair Station Hacks . | . . . . Recycling Unit Hacks . | . . . . Scanalyzer . | . . . . Garrison Access Hacks . | . . . . Unauthorized Hacks 4 | . . . 4 Terminals 1 | . . . 1 Botnet 1 | . . . 1 Fabricators . | . . . . Repair Stations . | . . . . Recycling Units . | . . . . Scanalyzers . | . . . . Garrison Access . | . . . . Data Cores Recovered . | . . . . Used . | . . . . Hacking Detections 3 | . 1 . 2 Full Trace Events 1 | . 1 . . Feedback Events 1 | . 1 . . Corruption 1 | . 1 . . Feedback Blocked . | . . . . Robot Schematics Acquired . | . . . . Robots Built . | . . . . Matter . | . . . . Time . | . . . . Total Robot Build Rating . | . . . . Part Schematics Acquired . | . . . . Parts Built . | . . . . Matter . | . . . . Time . | . . . . Total Part Build Rating . | . . . . Parts Repaired . | . . . . Time . | . . . . Parts Recycled . | . . . . Recycled Matter . | . . . . Retrieved Matter . | . . . . Retrieved Components . | . . . . Parts Scanalyzed . | . . . . Part Schematics Acquired . | . . . . Parts Damaged . | . . . . Bothacking | -11 -10 -10 -9 ------------ Run | Scr Mat Min Mat Used RIF Installer . | . . . . Robots Hacked . | . . . . Non-combat . | . . . . Combat . | . . . . Robot Hacks Applied . | . . . . Relay Couplers Released . | . . . . Robots Rewired . | . . . . Allies Hacked . | . . . . Hacks Repelled . | . . . . Allies | -11 -10 -10 -9 -------- Run | Scr Mat Min Mat Total Allies . | . . . . Largest Group . | . . . . Highest-Rated Group . | . . . . Highest-Rated Ally . | . . . . Total Orders . | . . . . Ally Attacks . | . . . . Total Damage . | . . . . Kills . | . . . . Allies Corrupted . | . . . . Allies Melted . | . . . . Intel | -11 -10 -10 -9 ------- Run | Scr Mat Min Mat Robot Analysis Total 3 | . 1 . 2 Derelict Logs Recovered . | . . . . Drone Launches . | . . . . Drone Recoveries . | . . . . Exploration | -11 -10 -10 -9 ------------- Run | Scr Mat Min Mat Turns Passed 712 | 55 313 39 305 Spaces Moved 454 | 37 183 33 201 Core 12 | 12 . . . Treads . | . . . . Legs 442 | 25 183 33 201 Wheels . | . . . . Hover . | . . . . Flight . | . . . . Fastest Speed 50 | 50 120 120 120 Average Speed 118 | 97 120 120 120 Slowest Speed 150 | 120 120 120 150 Overloaded Moves . | . . . . Propulsion Burnouts . | . . . . Robots Hopped . | . . . . Cave-ins Triggered . | . . . . Exploration Rate (%) 16 | 3 32 9 21 Regions Visited 3 Branch Regions 1 Pre-discovered Areas . | . . . . Known Exits Taken . | . . . . Unknown Exits Taken 3 | 1 1 1 . Scrap Searched . | . . . . Spaces Dug . | . . . . Terrain Destroyed 58 | . 44 . 14 Melee . | . . . . Projectile . | . . . . AOE 58 | . 44 . 14 Actions | -11 -10 -10 -9 --------- Run | Scr Mat Min Mat Total 549 | 51 235 32 231 Wait . | . . . . Move 451 | 36 182 32 201 Hop . | . . . . Pick Up 18 | 5 9 . 4 Fast Attach . | . . . . Attach 12 | 4 5 . 3 Detach . | . . . . Swap 4 | . 3 . 1 Drop 7 | 1 5 . 1 Fire 56 | 5 30 . 21 Melee . | . . . . Ram . | . . . . Kick 1 | . 1 . . Crush . | . . . . Escape Stasis . | . . . . Rewire . | . . . . Trap . | . . . . Miscellaneous . | . . . . Route ------- -11/Scrapyard -10/Materials -10/Mines -9/Materials History --------- Turn | Location | Event 2 | -11/Scrapyard | Met Revision 17 3 | -11/Scrapyard | Discovered new exit (range 15) 56 | -11/Scrapyard | Entered Materials 351 | -10/Materials | Discovered new exit (range 15) 369 | -10/Materials | Entered Mines 395 | -10/Mines | Build established: Scavenger-Mutant 399 | -10/Mines | Discovered new exit (range 7) 408 | -10/Mines | Entered Materials 408 | -9/Materials | Evolved 2 slots: Utility x2 713 | -9/Materials | Self-destructed Last Messages --------------- 00687_ A-02 Transporter destroyed. 00687_ Chain reaction triggered in Prototype Engine. 00689_ R-06 Scavenger collects Heat Sink. 00690_ G-34 Mercenary destroyed. 00690_ Chain reaction triggered in Ion Engine. 00694_ R-06 Scavenger collects Lgt. Treads. 00694_ R-06 Scavenger destroyed. 00694_ W-16 Scout destroyed. 00697_ R-06 Scavenger collects Lgt. Treads. 00697_ Door malfunctions. 00701_ EMP Blaster destroyed. 00701_ Beam Rifle destroyed. 00702_ R-06 Scavenger collects Prototype Energy Gun. 00704_ Aluminum Leg destroyed. 00705_ R-06 Scavenger collects Aluminum Leg. 00706_ Acquired 23 matter. 00707_ R-06 Scavenger collects Aluminum Leg. 00708_ R-06 Scavenger collects Sml. Laser. 00710_ R-06 Scavenger collects Heat Sink. 00711_ R-06 Scavenger collects Prototype Energy Gun. Map ----- +----------------------------------------------------+ | # #???????????????????? #?????????????????????? | | #% #???################# #?????????????????????? | | # #???# +?????????????????????? | | # #???# ^^ #?????????????????????? | | + #???# ^^ #?????????????????????? | | # #???# ############# #?????????????????????? | | # #???# #???????????# #?????????????????????? | | # #???# #???????????# #?????????????????????? | | # #???# #???????????# #?????????????????????? | | + %##### #???????????/ #?????????????????????? | | # #???????????# #?????????????????????? | | # #???????????#Y =#?????????????????????? | | ######## #???????????#%=!#?????????????????????? | | #??????# #???????????#=!%#?????????????????????? | | ???????# ###?????????# *=###########+##????????? | | ???????# ############# ???????? | | ???????# ???????? | | ???????# ""????????? | | ???????# % % #######???????????????? | | ???????# ############ % #????????????????????? | | ???????# #??????????# #????????????????????? | | ######## #??????????# % #????????????????????? | | ## #?######???# #????????????????????? | | ## #? #???# #????????????????????? | | " """ ## # """#???# #????????????????????? | | " """ ## # """#???## @ ##????????????????????? | | " """ ## + """#????# r#?????????????????????? | | ## # #????# %;#????????????????????? | | ## # #???? r%#????????????????????? | | ? ## #########??# ????????????????????? | | ###+### [ ![ ???????????????????? | | #####????##;[%[= ??????????????????? | | T #?????????#;;; ;####?????????????????? | | #?????????#######????????????????????? | | ###+### #????????????????????????????????????? | | #######????????????????????????????????????? | | #??????????????????????????????????????????? | | " """ #??????????????????????????????????????????? | | " """ #??????????????????????????????????????????? | | " """ #??????????????????????????????????????????? | | #??????????????????????????????????????????? | | #??????????????????????????????????????????? | | #??????????????????????????????????????????? | | #######??????????????????????????????????????????? | | ?????????????????????????????????????????????????? | | ?????????????????????????????????????????????????? | | ?????????????????????????????????????????????????? | | ?????????????????????????????????????????????????? | | ?????????????????????????????????????????????????? | | ?????????????????????????????????????????????????? | +----------------------------------------------------+ Best States ------------- Heat Dissipation 28 Coolant Potential 50 Energy Generation 12 Energy Capacity 565 Matter Stores 300 Matter Capacity 300 Sight Range 18 Terrain Scan Density 10 Resistance: KI 20 Resistance: TH 20 Resistance: EX 20 Resistance: EM 20 Resistance: I 20 Resistance: S 20 Resistance: P 20 Evasion (%) 50 Offensive Hacking 10 Item Schematics ----------------- None Robot Schematics ------------------ None Fabricated ------------ Nothing Alien Tech Used ----------------- None Achievements -------------- None Challenges ------------ None Game ------ Seed ShadeTargetingMembrane Manual? 0 Play Time 00:08:02 Cumulative 154.3 hours Start 2020.07.30 @ 17:08:48 End 2020.07.30 @ 17:14:25 Sessions 1 Manual Loads 0 Difficulty Adventurer Special Mode None Game No. 69 Rogue 0 Adventurer 69 Explorer 0 Win Type - Total 1 Types 1/0/0/0/0/0/0 Lore% 29 Gallery% 52 Achievement% 38 Wizard Run 0 Options --------- ASCII 0 Keyboard 0 Movement Numpad Keybinds 0 Fullscreen 0 Font 12/Smallcaps Map View 83x54 Tactical HUD 1 Map Filters NONE Filters NONE Steam X RUN: 5e0509b1-28d8-4c8c-9083-6f100f52e5a6